fUST/lending_fUST_20250415
["ID","MTS","AMOUNT","RATE_DAILY","PERIOD"]
[358031604,1744659038235,-1356.99111603,0.00025083,2]
[358031605,1744659038245,-500.0,0.00025083,2]
[358031606,1744659038255,-1898.93442645,0.00025083,2]
[358031607,1744659038265,-1898.93442645,0.00025083,2]
[358031608,1744659038275,-212.62717796,0.00025083,2]
[358031609,1744659038292,-287.37282204,0.00025083,2]
[358031610,1744659038302,-1345.91281294,0.00025083,2]
[358031611,1744659038314,-553.02161351,0.00025083,2]
[358031612,1744659038324,-468.51083849,0.00025083,2]
[358031613,1744659038336,-1430.42358796,0.00025083,2]
[358031614,1744659038346,-569.57641204,0.00025083,2]
[358031615,1744659038358,-1329.35801441,0.00025083,2]
[358031616,1744659038368,-1395.10819527,0.00025083,2]
[358031617,1744659038381,-503.82623118,0.00025083,2]
[358031618,1744659038391,-1502.57805229,0.00025083,2]
[358031619,1744659038403,-396.35637416,0.00025083,2]
[358031620,1744659038413,-835.68838883,0.00025083,2]
[358031621,1744659038425,-511.09596172,0.00025083,2]
[358031622,1744659038437,-552.1500759,0.00025083,2]
[358031623,1744659038448,-42.83397304,0.00025083,2]
[358031628,1744659040133,-810.27166094,0.00025083,2]
[358031629,1744659040188,-568.8321151,0.00025083,2]
[358031630,1744659040200,-476.99667737,0.00025083,2]
[358031631,1744659040209,-1898.93442645,0.00025083,2]
[358031632,1744659040219,-1898.93442645,0.00025083,2]
[358031633,1744659040228,-1898.93442645,0.00025083,2]
[358031634,1744659040237,-1898.93442645,0.00025083,2]
[358031635,1744659040246,-1898.93442645,0.00025083,2]
[358031636,1744659040255,-1898.93442645,0.00025083,2]
[358031637,1744659040265,-1898.93442645,0.00025083,2]
[358031638,1744659040274,-1898.93442645,0.00025083,2]
[358031639,1744659040285,-1898.93442645,0.00025083,2]
[358031641,1744659040295,-1898.93442645,0.00025083,2]
[358031642,1744659040305,-1898.93442645,0.00025083,2]
[358031643,1744659040315,-1898.93442645,0.00025083,2]
[358031644,1744659040325,-1898.93442645,0.00025083,2]
[358031645,1744659040336,-1898.93442645,0.00025083,2]
[358031646,1744659040348,-1898.93442645,0.00025083,2]
[358031647,1744659040357,-1898.93442645,0.00025083,2]
[358031648,1744659040367,-1898.93442645,0.00025083,2]
[358031649,1744659040376,-1898.93442645,0.00025083,2]
[358031650,1744659040387,-1898.93442645,0.00025083,2]
[358031651,1744659040397,-1898.93442645,0.00025083,2]
[358031652,1744659040407,-1898.93442645,0.00025083,2]
[358031653,1744659040417,-1898.93442645,0.00025083,2]
[358031654,1744659040427,-1898.93442645,0.00025083,2]
[358031655,1744659040436,-1898.93442645,0.00025083,2]
[358031656,1744659040446,-1898.93442645,0.00025083,2]
[358031657,1744659040456,-1898.93442645,0.00025083,2]
[358031658,1744659040465,-1898.93442645,0.00025083,2]
[358031659,1744659040475,-1898.93442645,0.00025083,2]
[358031660,1744659040484,-1898.93442645,0.00025083,2]
[358031661,1744659040494,-1898.93442645,0.00025083,2]
[358031662,1744659040504,-1898.93442645,0.00025083,2]
[358031663,1744659040514,-1898.93442645,0.00025083,2]
[358031664,1744659040524,-1898.93442645,0.00025083,2]
[358031665,1744659040534,-1898.93442645,0.00025083,2]
[358031666,1744659040543,-1898.93442645,0.00025083,2]
[358031667,1744659040553,-1898.93442645,0.00025083,2]
[358031668,1744659040563,-1898.93442645,0.00025083,2]
[358031669,1744659040573,-1898.93442645,0.00025083,2]
[358031670,1744659040583,-1958.58196867,0.00025084,2]
[358031671,1744659040593,-45961.85320762,0.00025085,2]
[358031672,1744659040799,-244.06096408,0.00025085,2]
[358031673,1744659040810,-981.98036383,0.00025088,2]
[358031687,1744659043043,-12834.9889814,0.00025088,2]
[358031688,1744659043056,-2743.90981451,0.00025088,2]
[358031689,1744659043151,-542.46512059,0.00025088,2]
[358031690,1744659043163,-468.942,0.00025088,2]
[358031691,1744659043175,-2090.44795886,0.00025088,2]
[358031692,1744659043187,-1644.67106572,0.00025088,2]
[358031695,1744659046034,-24898.50886679,0.00025088,2]
[358031696,1744659046045,-2921.79063248,0.000259,6]
[358031697,1744659046054,-500.0,0.0002591,2]
[358031698,1744659046063,-500.0,0.0002591,2]
[358031699,1744659046073,-535.27139459,0.0002591,2]
[358031700,1744659046082,-500.0,0.0002591,2]
[358031701,1744659046092,-500.0,0.0002591,2]
[358031702,1744659046102,-500.0,0.00026067,2]
[358031703,1744659046111,-420.0,0.00027118,2]
[358031704,1744659046121,-420.0,0.0002724,2]
[358031705,1744659046130,-151.0,0.00027397,2]
[358031706,1744659046140,-190.19218234,0.00027397,2]
[358031707,1744659046150,-210.2468566,0.00027397,2]
[358031708,1744659046159,-151.0,0.00027397,2]
[358031709,1744659046168,-151.0,0.00027397,2]
[358031710,1744659046178,-500.0,0.00027397,2]
[358031711,1744659046188,-151.0,0.00027397,2]
[358031712,1744659046197,-151.0,0.00027397,2]
[358031713,1744659046207,-151.0,0.00027397,2]
[358031714,1744659046217,-214.98501444,0.00027397,2]
[358031715,1744659046227,-500.0,0.00027397,2]
[358031716,1744659046237,-500.0,0.00027397,2]
[358031717,1744659046247,-500.0,0.00027397,2]
[358031718,1744659046256,-151.0,0.00027397,2]
[358031719,1744659046265,-500.0,0.00027397,2]
[358031720,1744659046276,-151.0,0.00027397,2]
[358031721,1744659046285,-408.5105493,0.00027397,2]
[358031788,1744660232476,-6014.37821039,0.00023,2]
[358031789,1744660232487,-199.9956401,0.00023582,2]
[358031790,1744660232497,-1996.3172822,0.00023616,2]
[358031791,1744660232506,-529.002145,0.00023682,2]
[358031792,1744660232516,-1000.0,0.00023829,2]
[358031793,1744660232526,-6823.305045,0.00023929,2]
[358031794,1744660232536,-300.0,0.00024085,2]
[358031795,1744660232545,-300.0,0.00024085,2]
[358031796,1744660232556,-7394.3559933,0.00024086,2]
[358031797,1744660232566,-158.502434,0.000245,2]
[358031798,1744660232576,-10.78318422,0.0002477,2]
[358031799,1744660232590,-2403.79273675,0.0002477,2]
[358031800,1744660232600,-437.59695302,0.00024773,2]
[358031801,1744660232610,-196.88061053,0.00024859,2]
[358031802,1744660232620,-1216.190027,0.00024859,2]
[358031803,1744660232630,-500.0,0.00024859,2]
[358031804,1744660232639,-1216.190027,0.00024859,2]
[358031805,1744660232649,-500.0,0.00024859,2]
[358031806,1744660232658,-1216.190027,0.00024859,2]
[358031807,1744660232668,-499.42357251,0.00024859,2]
[358031808,1744660232678,-1216.190027,0.00024859,2]
[358031809,1744660232687,-1216.190027,0.00024859,2]
[358031810,1744660232697,-1216.190027,0.00024859,2]
[358031811,1744660232707,-1216.190027,0.00024859,2]
[358031812,1744660232718,-1216.190027,0.00024859,2]
[358031813,1744660232727,-1216.190027,0.00024859,2]
[358031814,1744660232737,-1216.190027,0.00024859,2]
[358031815,1744660232746,-1216.190027,0.00024859,2]
[358031816,1744660232755,-1216.190027,0.00024859,2]
[358031817,1744660232765,-1216.190027,0.00024859,2]
[358031818,1744660232779,-1216.190027,0.00024859,2]
[358031819,1744660232789,-1216.190027,0.00024859,2]
[358031820,1744660232798,-1216.190027,0.00024859,2]
[358031821,1744660232808,-1216.190027,0.00024859,2]
[358031822,1744660232818,-1216.190027,0.00024859,2]
[358031823,1744660232827,-1216.190027,0.00024859,2]
[358031824,1744660232839,-1216.190027,0.00024859,2]
[358031825,1744660232849,-1216.190027,0.00024859,2]
[358031826,1744660232859,-1216.190027,0.00024859,2]
[358031828,1744660232870,-1216.190027,0.00024859,2]
[358031829,1744660232880,-1216.190027,0.00024859,2]
[358031830,1744660232890,-1216.190027,0.00024859,2]
[358031831,1744660232900,-1216.190027,0.00024859,2]
[358031832,1744660232910,-1216.190027,0.00024859,2]
[358031833,1744660232919,-1216.190027,0.00024859,2]
[358031834,1744660232929,-1216.190027,0.00024859,2]
[358031835,1744660232939,-1216.190027,0.00024859,2]
[358031836,1744660232948,-1216.190027,0.00024859,2]
[358031837,1744660232958,-1216.190027,0.00024859,2]
[358031838,1744660232968,-1216.190027,0.00024859,2]
[358031839,1744660232978,-1216.190027,0.00024859,2]
[358031840,1744660232988,-1216.190027,0.00024859,2]
[358031841,1744660232997,-1216.190027,0.00024859,2]
[358031842,1744660233007,-1216.190027,0.00024859,2]
[358031843,1744660233017,-1216.190027,0.00024859,2]
[358031844,1744660233027,-1216.190027,0.00024859,2]
[358031845,1744660233036,-1216.190027,0.00024859,2]
[358031846,1744660233046,-460.95840522,0.00024859,2]
[358031847,1744660233059,-487.31355088,0.00024859,2]
[358031876,1744660238203,-338.67052,0.00023354,2]
[358031878,1744660238213,-320.17208097,0.00024858,2]
[358031880,1744660238223,-500.0,0.00024858,2]
[358031882,1744660238232,-500.0,0.00024858,2]
[358031884,1744660238243,-190.02040738,0.00024858,2]
[358031886,1744660238253,-267.03874521,0.00024858,2]
[358031888,1744660238265,-232.96125479,0.00024858,2]
[358031890,1744660238275,-500.0,0.00024858,2]
[358031892,1744660238285,-418.36013227,0.00024858,2]
[358031894,1744660238294,-500.0,0.00024858,2]
[358031896,1744660238304,-49.28217144,0.00024858,2]
[358031899,1744660238316,-450.71782856,0.00024858,2]
[358031901,1744660238327,-471.96217144,0.00024858,2]
[358031903,1744660238339,-28.03782856,0.00024858,2]
[358031905,1744660238349,-23060.51836595,0.00024859,2]
[358031907,1744660238359,-6920.51163534,0.0002486,2]
[358031909,1744660238368,-500.0,0.00024873,2]
[358031911,1744660238378,-500.0,0.00024873,2]
[358031913,1744660238388,-500.0,0.00024873,2]
[358031915,1744660238398,-500.0,0.00024873,2]
[358031917,1744660238408,-500.0,0.00024873,2]
[358031919,1744660238418,-602.79187796,0.00024873,2]
[358031921,1744660238428,-500.0,0.00024873,2]
[358031924,1744660238438,-500.67474896,0.00024873,2]
[358031926,1744660238448,-503.23903596,0.00024873,2]
[358031928,1744660238458,-500.66529769,0.00024873,2]
[358031930,1744660238467,-504.69515223,0.00024873,2]
[358031932,1744660238477,-339.73846963,0.00024873,2]
[358031934,1744660238487,-500.0,0.00024873,2]
[358031936,1744660238498,-505.30703472,0.00024873,2]
[358031938,1744660238508,-500.0,0.00024873,2]
[358031940,1744660238518,-500.0,0.00024873,2]
[358031942,1744660238529,-3460.25581767,0.0002489,2]
[358031944,1744660238538,-52081.93781877,0.000249,2]
[358031946,1744660238548,-6311.62330134,0.000249,3]
[358031948,1744660238558,-122446.90196954,0.000249,2]
[358031950,1744660238570,-44482.10071446,0.000249,2]
[358031952,1744660238580,-3021.38659879,0.000249,5]
[358031954,1744660238594,-151.0,0.00024969,2]
[358031957,1744660238604,-151.0,0.00024969,2]
[358031959,1744660238613,-151.0,0.00024969,2]
[358031961,1744660238623,-151.0,0.00024969,2]
[358031963,1744660238633,-151.0,0.00024969,2]
[358031965,1744660238642,-164.15100262,0.00024969,2]
[358031967,1744660238652,-207.4,0.00024969,2]
[358031969,1744660238662,-500.0,0.00024973,2]
[358031971,1744660238672,-280.48755935,0.00024973,2]
[358031973,1744660238682,-500.0,0.00024973,2]
[358031975,1744660238691,-500.0,0.00024973,2]
[358031977,1744660238701,-160.14796274,0.00024973,2]
[358031979,1744660238710,-500.0,0.00024973,2]
[358031981,1744660238719,-469.51071864,0.00024973,2]
[358031983,1744660238729,-500.0,0.00024973,2]
[358031985,1744660238739,-393.85601038,0.00024973,2]
[358031987,1744660238748,-202.83558614,0.00024973,2]
[358031989,1744660238758,-500.0,0.00024973,2]
[358031991,1744660238767,-500.0,0.00024973,2]
[358031993,1744660238777,-500.0,0.00024973,2]
[358031995,1744660238787,-300.07265327,0.00024973,2]
[358031997,1744660238797,-500.0,0.00024973,2]
[358031999,1744660238807,-500.0,0.00024973,2]
[358032001,1744660238816,-500.0,0.00024973,2]
[358032003,1744660238826,-160.25455909,0.00024973,2]
[358032005,1744660238836,-500.0,0.00024973,2]
[358032007,1744660238846,-500.0,0.00024973,2]
[358032009,1744660238855,-500.0,0.00024973,2]
[358032011,1744660238866,-166929.002684,0.00024974,2]
[358032013,1744660238876,-13247.23532384,0.00024974,2]
[358032015,1744660238888,-14434.81121756,0.00024974,2]
[358032018,1744660238898,-151.0,0.00024984,7]
[358032020,1744660238907,-236.326357,0.00024984,7]
[358032022,1744660238917,-236.326357,0.00024984,7]
[358032024,1744660238926,-151.0,0.00024984,7]
[358032026,1744660238936,-151.0,0.00024984,7]
[358032028,1744660238946,-151.0,0.00024984,7]
[358032030,1744660238955,-373.716592,0.00024984,7]
[358032032,1744660238965,-167.750058,0.00024984,7]
[358032034,1744660238975,-167.750058,0.00024984,7]
[358032036,1744660238984,-151.0,0.00024984,7]
[358032038,1744660238994,-151.0,0.00024984,7]
[358032040,1744660239003,-151.0,0.00024984,7]
[358032042,1744660239013,-171.571255,0.00024984,7]
[358032044,1744660239022,-171.571255,0.00024984,7]
[358032046,1744660239032,-7079.465409,0.00024984,2]
[358032048,1744660239041,-7079.465409,0.00024984,2]
[358032050,1744660239052,-1267.77096,0.00024984,7]
[358032052,1744660239061,-151.0,0.00024984,7]
[358032054,1744660239071,-1267.77096,0.00024984,7]
[358032056,1744660239081,-151.0,0.00024984,7]
[358032058,1744660239090,-289.674835,0.00024984,7]
[358032060,1744660239100,-151.0,0.00024984,7]
[358032062,1744660239110,-151.0,0.00024984,7]
[358032064,1744660239120,-151.760182,0.00024984,7]
[358032066,1744660239130,-151714.12320088,0.00024984,2]
[358032068,1744660239144,-3661.4206,0.00024984,2]
[358032161,1744660240366,-25555.58045551,0.00024984,2]
[358032430,1744660243129,-262.248948,0.00024984,2]
[358032432,1744660243141,-57818.12109751,0.00024984,2]
[358032437,1744660243179,-10799.20356323,0.00024984,2]
[358032439,1744660243191,-843.26447938,0.00024984,2]
[358032444,1744660243233,-97366.46179336,0.00024984,2]
[358032752,1744660246173,-4445.25759157,0.00024984,2]
[358032754,1744660246183,-437.59695301,0.00025025,2]
[358032756,1744660246192,-437.59695301,0.00025276,2]
[358032758,1744660246203,-437.59695301,0.00025528,2]
[358032760,1744660246212,-437.59695301,0.00025779,2]
[358032762,1744660246222,-2837.2764544,0.00025879,2]
[358032764,1744660246231,-420.0,0.00026117,2]
[358032766,1744660246243,-420.0,0.00026236,2]
[358032768,1744660246254,-3021.38659869,0.00026314,6]
[358032770,1744660246264,-151.0,0.00026338,2]
[358032772,1744660246274,-215.0738,0.00026338,2]
[358032774,1744660246284,-1001.08876909,0.00026665,2]
[358032777,1744660246293,-838.51730609,0.00027276,2]
[358032780,1744660246303,-160.0,0.00027276,2]
[358032783,1744660246313,-160.0,0.00027276,2]
[358032786,1744660246323,-194.80869348,0.00027276,2]
[358032789,1744660246335,-7134.66245798,0.00027276,2]
[358032794,1744660246348,-1610.02034991,0.00027276,2]
[358034779,1744661432235,-268.373701,0.00023071,2]
[358034781,1744661432245,-6330.7513787,0.00023586,2]
[358034783,1744661432255,-560.1841243,0.00023824,2]
[358034785,1744661432265,-300.0,0.00024069,2]
[358034787,1744661432275,-500.043,0.0002407,2]
[358034789,1744661432285,-500.0,0.0002407,2]
[358034791,1744661432295,-500.0,0.0002407,2]
[358034793,1744661432304,-500.0,0.0002407,2]
[358034794,1744661432314,-166.60261917,0.0002407,2]
[358034795,1744661432324,-500.0,0.0002407,2]
[358034796,1744661432334,-500.0,0.0002407,2]
[358034797,1744661432344,-500.0,0.0002407,2]
[358034798,1744661432354,-500.0,0.0002407,2]
[358034799,1744661432364,-500.0,0.0002407,2]
[358034800,1744661432374,-500.0,0.0002407,2]
[358034802,1744661432383,-500.0,0.0002407,2]
[358034804,1744661432393,-500.0,0.0002407,2]
[358034806,1744661432403,-500.0,0.0002407,2]
[358034807,1744661432412,-500.0,0.0002407,2]
[358034808,1744661432421,-500.0,0.0002407,2]
[358034809,1744661432431,-500.0,0.0002407,2]
[358034810,1744661432440,-500.0,0.0002407,2]
[358034811,1744661432450,-500.0,0.0002407,2]
[358034812,1744661432459,-500.0,0.0002407,2]
[358034813,1744661432469,-500.0,0.0002407,2]
[358034814,1744661432479,-500.0,0.0002407,2]
[358034815,1744661432488,-500.0,0.0002407,2]
[358034816,1744661432498,-500.0,0.0002407,2]
[358034817,1744661432507,-500.0,0.0002407,2]
[358034818,1744661432516,-500.0,0.0002407,2]
[358034819,1744661432525,-500.0,0.0002407,2]
[358034820,1744661432535,-500.0,0.0002407,2]
[358034821,1744661432544,-500.0,0.0002407,2]
[358034822,1744661432556,-457.46480705,0.0002407,2]
[358034823,1744661432564,-500.0,0.0002407,2]
[358034824,1744661432573,-500.0,0.0002407,2]
[358034825,1744661432581,-500.0,0.0002407,2]
[358034826,1744661432590,-500.0,0.0002407,2]
[358034827,1744661432600,-500.0,0.0002407,2]
[358034828,1744661432609,-500.0,0.0002407,2]
[358034829,1744661432619,-500.0,0.0002407,2]
[358034830,1744661432629,-500.0,0.0002407,2]
[358034831,1744661432640,-500.0,0.0002407,2]
[358034832,1744661432650,-500.0,0.0002407,2]
[358034833,1744661432660,-500.0,0.0002407,2]
[358034834,1744661432671,-500.0,0.0002407,2]
[358034835,1744661432681,-500.0,0.0002407,2]
[358034836,1744661432691,-500.0,0.0002407,2]
[358034837,1744661432701,-500.0,0.0002407,2]
[358034838,1744661432710,-500.0,0.0002407,2]
[358034839,1744661432720,-500.0,0.0002407,2]
[358034840,1744661432730,-500.0,0.0002407,2]
[358034841,1744661432740,-500.0,0.0002407,2]
[358034842,1744661432750,-500.0,0.0002407,2]
[358034843,1744661432759,-500.0,0.0002407,2]
[358034844,1744661432770,-500.0,0.0002407,2]
[358034845,1744661432779,-500.0,0.0002407,2]
[358034846,1744661432788,-500.0,0.0002407,2]
[358034847,1744661432797,-500.0,0.0002407,2]
[358034848,1744661432805,-500.0,0.0002407,2]
[358034849,1744661432815,-500.0,0.0002407,2]
[358034850,1744661432824,-500.0,0.0002407,2]
[358034851,1744661432834,-500.0,0.0002407,2]
[358034852,1744661432843,-500.0,0.0002407,2]
[358034853,1744661432853,-500.0,0.0002407,2]
[358034854,1744661432864,-500.0,0.0002407,2]
[358034855,1744661432873,-500.0,0.0002407,2]
[358034856,1744661432883,-500.0,0.0002407,2]
[358034857,1744661432893,-2104.87574086,0.0002407,2]
[358034858,1744661432902,-2104.87574086,0.0002407,2]
[358034859,1744661432912,-2104.87574086,0.0002407,2]
[358034860,1744661432922,-2104.87574086,0.0002407,2]
[358034861,1744661432932,-2104.87574086,0.0002407,2]
[358034862,1744661432941,-2104.87574086,0.0002407,2]
[358034863,1744661432951,-2104.87574086,0.0002407,2]
[358034864,1744661432961,-2104.87574086,0.0002407,2]
[358034865,1744661432970,-2104.87574086,0.0002407,2]
[358034866,1744661432981,-2104.87574086,0.0002407,2]
[358034867,1744661432990,-1915.91808579,0.0002407,2]
[358034868,1744661433010,-188.95765507,0.0002407,2]
[358034869,1744661433024,-1237.8980272,0.0002407,2]
[358034870,1744661433054,-866.97771366,0.0002407,2]
[358034871,1744661433065,-2104.87574086,0.0002407,2]
[358034872,1744661433075,-1632.53849169,0.0002407,2]
[358034914,1744661438550,-464.08112466,0.0002407,2]
[358034915,1744661438565,-8.25612451,0.0002407,2]
[358034916,1744661438574,-2104.87574086,0.0002407,2]
[358034917,1744661438584,-2104.87574086,0.0002407,2]
[358034928,1744661438870,-567.51070026,0.0002407,2]
[358035366,1744661442997,-1070.70673593,0.0002407,2]
[358035410,1744661443413,-466.65830467,0.0002407,2]
[358035412,1744661443423,-2104.87574086,0.0002407,2]
[358035414,1744661443433,-2104.87574086,0.0002407,2]
[358035416,1744661443442,-2104.87574086,0.0002407,2]
[358035418,1744661443452,-2104.87574086,0.0002407,2]
[358035420,1744661443462,-2104.87574086,0.0002407,2]
[358035422,1744661443472,-2104.87574086,0.0002407,2]
[358035424,1744661443483,-2104.87574086,0.0002407,2]
[358035426,1744661443493,-2104.87574086,0.0002407,2]
[358035428,1744661443503,-2104.87574086,0.0002407,2]
[358035430,1744661443512,-2104.87574086,0.0002407,2]
[358035432,1744661443521,-2104.87574086,0.0002407,2]
[358035434,1744661443531,-2104.8757409,0.0002407,2]
[358035436,1744661443542,-18640.9845167,0.0002407,2]
[358035438,1744661443552,-500.0,0.00024071,2]
[358035440,1744661443566,-500.0,0.00024071,2]
[358035442,1744661443576,-539.60616335,0.00024071,2]
[358035444,1744661443585,-500.0,0.00024071,2]
[358035446,1744661443596,-533.01428517,0.00024071,2]
[358035448,1744661443606,-500.0,0.00024071,2]
[358035450,1744661443616,-500.0,0.00024071,2]
[358035452,1744661443626,-308.338884,0.00024071,2]
[358035454,1744661443637,-1407.0680582,0.00024071,2]
[358035456,1744661443649,-500.0,0.00024073,2]
[358035458,1744661443659,-500.0,0.00024073,2]
[358035460,1744661443668,-500.0,0.00024073,2]
[358035462,1744661443678,-456.23568239,0.00024073,2]
[358035718,1744661446387,-43.76431761,0.00024073,2]
[358035719,1744661446398,-534.44279293,0.00024073,2]
[358035720,1744661446407,-500.0,0.00024073,2]
[358035721,1744661446418,-500.0,0.00024073,2]
[358035722,1744661446427,-500.0,0.00024073,2]
[358035723,1744661446437,-271.29024276,0.00024073,2]
[358035724,1744661446447,-163.58098043,0.00024073,2]
[358035725,1744661446456,-502.17434968,0.00024073,2]
[358035727,1744661446466,-500.0,0.00024073,2]
[358035729,1744661446476,-500.0,0.00024073,2]
[358035731,1744661446486,-233.74731659,0.00024073,2]
[358035733,1744661446498,-266.25268341,0.00024073,2]
[358035736,1744661446508,-500.0,0.00024073,2]
[358035738,1744661446517,-500.0,0.00024073,2]
[358035740,1744661446527,-144.97705479,0.00024073,2]
[358035746,1744661446575,-355.02294521,0.00024073,2]
[358035748,1744661446585,-494.34577288,0.00024073,2]
[358035750,1744661446595,-14809.4372192,0.00024086,2]
[358035752,1744661446605,-1300.2545379,0.00024086,2]
[358035754,1744661446616,-152.0,0.00024551,2]
[358035756,1744661446625,-1000.0,0.00024568,2]
[358035758,1744661446634,-250.0,0.00024669,2]
[358035760,1744661446646,-199.41911981,0.00024669,2]
[358035762,1744661446656,-1557.11511795,0.000248,2]
[358035764,1744661446665,-1557.11511795,0.00024863,2]
[358035767,1744661446677,-500.0,0.00024873,2]
[358035769,1744661446686,-500.0,0.00024873,2]
[358035771,1744661446695,-606.2031,0.00024873,2]
[358035773,1744661446705,-500.0,0.00024873,2]
[358035775,1744661446714,-500.0,0.00024873,2]
[358035777,1744661446724,-500.0,0.00024873,2]
[358035779,1744661446734,-500.0,0.00024873,2]
[358035781,1744661446744,-535.34442905,0.00024873,2]
[358035783,1744661446753,-753.09705082,0.00024884,2]
[358035785,1744661446762,-207.4,0.00024885,2]
[358035787,1744661446771,-3114.2302359,0.0002489,2]
[358035789,1744661446781,-131607.48965172,0.000249,2]
[358037036,1744661778626,1167.41513846,0.00018,2]
[358037037,1744661778661,3332.58486154,0.00018,2]
[358037098,1744662632478,-267.88980492,0.000239,2]
[358037099,1744662632490,-732.11019508,0.000239,2]
[358037100,1744662632500,-3002.95,0.00024,2]
[358037101,1744662632510,-485.99729353,0.00024054,2]
[358037102,1744662632520,-300.0,0.00024059,2]
[358037103,1744662632529,-300.0,0.00024059,2]
[358037104,1744662632538,-500.0,0.0002406,2]
[358037105,1744662632548,-195.25914762,0.0002406,2]
[358037106,1744662632557,-500.0,0.0002406,2]
[358037107,1744662632567,-500.0,0.0002406,2]
[358037108,1744662632576,-500.0,0.0002406,2]
[358037109,1744662632586,-500.0,0.0002406,2]
[358037110,1744662632595,-500.0,0.0002406,2]
[358037111,1744662632604,-500.0,0.0002406,2]
[358037112,1744662632613,-500.0,0.0002406,2]
[358037113,1744662632622,-500.0,0.0002406,2]
[358037114,1744662632632,-500.0,0.0002406,2]
[358037116,1744662632642,-500.0,0.0002406,2]
[358037118,1744662632652,-252.56972916,0.0002406,2]
[358037120,1744662632662,-500.0,0.0002406,2]
[358037122,1744662632672,-234.01723052,0.0002406,2]
[358037125,1744662632681,-500.0,0.0002406,2]
[358037127,1744662632691,-500.0,0.0002406,2]
[358037129,1744662632700,-500.0,0.0002406,2]
[358037131,1744662632709,-500.0,0.0002406,2]
[358037133,1744662632719,-500.0,0.0002406,2]
[358037135,1744662632728,-454.49598911,0.0002406,2]
[358037136,1744662632738,-500.0,0.0002406,2]
[358037137,1744662632747,-500.0,0.0002406,2]
[358037138,1744662632757,-500.0,0.0002406,2]
[358037139,1744662632769,-500.0,0.0002406,2]
[358037140,1744662632778,-500.0,0.0002406,2]
[358037141,1744662632788,-500.0,0.0002406,2]
[358037142,1744662632798,-500.0,0.0002406,2]
[358037143,1744662632808,-500.0,0.0002406,2]
[358037144,1744662632817,-500.0,0.0002406,2]
[358037145,1744662632827,-500.0,0.0002406,2]
[358037146,1744662632836,-500.0,0.0002406,2]
[358037147,1744662632846,-500.0,0.0002406,2]
[358037148,1744662632856,-500.0,0.0002406,2]
[358037149,1744662632866,-500.0,0.0002406,2]
[358037150,1744662632875,-500.0,0.0002406,2]
[358037151,1744662632885,-500.0,0.0002406,2]
[358037152,1744662632895,-639.0604606,0.0002406,2]
[358037153,1744662632905,-500.0,0.0002406,2]
[358037154,1744662632914,-500.0,0.0002406,2]
[358037155,1744662632923,-500.0,0.0002406,2]
[358037156,1744662632938,-500.0,0.0002406,2]
[358037157,1744662632947,-500.0,0.0002406,2]
[358037158,1744662632957,-500.0,0.0002406,2]
[358037159,1744662632967,-500.0,0.0002406,2]
[358037160,1744662632978,-500.0,0.0002406,2]
[358037161,1744662632988,-500.0,0.0002406,2]
[358037162,1744662632998,-500.0,0.0002406,2]
[358037163,1744662633009,-500.0,0.0002406,2]
[358037164,1744662633020,-500.0,0.0002406,2]
[358037165,1744662633029,-500.0,0.0002406,2]
[358037166,1744662633039,-500.0,0.0002406,2]
[358037167,1744662633049,-500.0,0.0002406,2]
[358037168,1744662633059,-500.0,0.0002406,2]
[358037169,1744662633069,-500.0,0.0002406,2]
[358037170,1744662633079,-500.0,0.0002406,2]
[358037171,1744662633089,-500.0,0.0002406,2]
[358037172,1744662633099,-500.0,0.0002406,2]
[358037173,1744662633110,-500.0,0.0002406,2]
[358037174,1744662633120,-500.0,0.0002406,2]
[358037175,1744662633131,-500.0,0.0002406,2]
[358037176,1744662633141,-500.0,0.0002406,2]